[Event "Grandmaster Triathlon - Blitz (GM1)"]
[Site "Biel, Switzerland"]
[Date "2026.07.19"]
[Round "5.1"]
[White "Le, Quang Liem"]
[Black "Martinez Alcantara, Jose Eduardo"]
[Result "1-0"]
[TimeControl "3 min + 2 sec"]
[WhiteTitle "-"]
[BlackTitle "-"]
[WhiteFideId "12401137"]
[BlackFideId "3805662"]
[WhiteElo "2690"]
[BlackElo "2641"]

1. d4 {[%clk 00:03:03]} Nf6 {[%clk 00:03:03]} {[%emt 00:00:02]} 2. c4 {[%clk
00:03:04]} {[%emt 00:00:01]} d6 {[%clk 00:03:04]} 3. Nf3 {[%clk 00:03:05]}
{[%emt 00:00:01]} g6 {[%clk 00:03:05]} {[%emt 00:00:01]} 4. g3 {[%clk
00:03:06]} Bg7 {[%clk 00:03:05]} {[%emt 00:00:02]} 5. Bg2 {[%clk 00:03:06]}
{[%emt 00:00:01]} Bf5 {[%clk 00:03:05]} {[%emt 00:00:02]} 6. O-O {[%clk
00:03:05]} {[%emt 00:00:04]} O-O {[%clk 00:03:05]} {[%emt 00:00:02]} 7. Qb3
{[%clk 00:03:05]} {[%emt 00:00:01]} Bc8 {[%clk 00:02:47]} {[%emt 00:00:21]} 8.
Nc3 {[%clk 00:03:04]} {[%emt 00:00:03]} Nc6 {[%clk 00:02:46]} {[%emt 00:00:03]}
9. d5 {[%clk 00:03:04]} {[%emt 00:00:02]} Na5 {[%clk 00:02:43]} {[%emt
00:00:05]} 10. Qa4 {[%clk 00:03:02]} {[%emt 00:00:05]} c5 {[%clk 00:02:37]}
{[%emt 00:00:08]} 11. dxc6 {[%clk 00:03:01]} {[%emt 00:00:03]} Nxc6 {[%clk
00:02:38]} {[%emt 00:00:01]} 12. Rd1 {[%clk 00:02:58]} {[%emt 00:00:05]} Bd7
{[%clk 00:02:37]} {[%emt 00:00:03]} 13. Qc2 {[%clk 00:02:16]} {[%emt 00:00:44]}
Rc8 {[%clk 00:02:38]} {[%emt 00:00:01]} 14. Be3 {[%clk 00:02:09]} {[%emt
00:00:09]} a6 {[%clk 00:02:38]} {[%emt 00:00:02]} 15. h3 {[%clk 00:02:05]}
{[%emt 00:00:05]} Qa5 {[%clk 00:02:04]} {[%emt 00:00:36]} 16. a3 {[%clk
00:01:58]} {[%emt 00:00:10]} Qf5 {[%clk 00:01:37]} {[%emt 00:00:29]} 17. Qxf5
{[%clk 00:01:51]} {[%emt 00:00:09]} Bxf5 {[%clk 00:01:38]} 18. Rac1 {[%clk
00:01:50]} {[%emt 00:00:03]} Na5 {[%clk 00:01:36]} {[%emt 00:00:04]} 19. Nd2
{[%clk 00:01:43]} {[%emt 00:00:09]} Nxc4 {[%clk 00:01:06]} {[%emt 00:00:32]} 20.
Nxc4 {[%clk 00:01:43]} {[%emt 00:00:02]} Rxc4 {[%clk 00:01:08]} 21. Bxb7 {[%clk
00:01:44]} {[%emt 00:00:02]} Rb8 {[%clk 00:00:52]} {[%emt 00:00:17]} 22. Bxa6
{[%clk 00:01:37]} {[%emt 00:00:09]} Rc6 {[%clk 00:00:53]} 23. Bd3 {[%clk
00:01:13]} {[%emt 00:00:26]} Bxd3 {[%clk 00:00:53]} {[%emt 00:00:02]} 24. exd3
{[%clk 00:01:10]} {[%emt 00:00:05]} Rxb2 {[%clk 00:00:52]} {[%emt 00:00:03]} 25.
Nd5 {[%clk 00:01:10]} {[%emt 00:00:02]} Rxc1 {[%clk 00:00:39]} {[%emt
00:00:15]} 26. Rxc1 {[%clk 00:01:05]} {[%emt 00:00:07]} Bf8 {[%clk 00:00:25]}
{[%emt 00:00:16]} 27. Nxf6+ {[%clk 00:00:59]} {[%emt 00:00:08]} exf6 {[%clk
00:00:26]} {[%emt 00:00:01]} 28. Ra1 {[%clk 00:01:00]} {[%emt 00:00:01]} Rb5
{[%clk 00:00:15]} {[%emt 00:00:12]} 29. a4 {[%clk 00:01:00]} {[%emt 00:00:02]}
Ra5 {[%clk 00:00:17]} 30. Bd2 {[%clk 00:00:55]} {[%emt 00:00:07]} Ra6 {[%clk
00:00:18]} {[%emt 00:00:01]} 31. a5 {[%clk 00:00:57]} Be7 {[%clk 00:00:18]}
{[%emt 00:00:02]} 32. Rb1 {[%clk 00:00:57]} {[%emt 00:00:01]} d5 {[%clk
00:00:15]} {[%emt 00:00:06]} 33. Bh6 {[%clk 00:00:44]} {[%emt 00:00:14]} Ra8
{[%clk 00:00:15]} {[%emt 00:00:04]} 34. a6 {[%clk 00:00:44]} {[%emt 00:00:02]}
Bf8 {[%clk 00:00:16]} 35. Bxf8 {[%clk 00:00:42]} {[%emt 00:00:03]} Kxf8 {[%clk
00:00:17]} 36. Rb6 {[%clk 00:00:43]} {[%emt 00:00:01]} f5 {[%clk 00:00:13]}
{[%emt 00:00:07]} 37. Kg2 {[%clk 00:00:44]} Kg7 {[%clk 00:00:11]} {[%emt
00:00:05]} 38. Kf3 {[%clk 00:00:45]} d4 {[%clk 00:00:11]} {[%emt 00:00:02]} 39.
Kf4 {[%clk 00:00:44]} {[%emt 00:00:02]} f6 {[%clk 00:00:10]} {[%emt 00:00:03]}
40. Rb7+ {[%clk 00:00:45]} {[%emt 00:00:01]} Kh6 {[%clk 00:00:10]} {[%emt
00:00:02]} 41. a7 {[%clk 00:00:47]} 1-0

[Event "Grandmaster Triathlon - Blitz (GM1)"]
[Site "Biel, Switzerland"]
[Date "2026.07.19"]
[Round "5.2"]
[White "Aronian, Levon"]
[Black "Erdogmus, Yagiz Kaan"]
[Result "0-1"]
[TimeControl "3 min + 2 sec"]
[WhiteTitle "-"]
[BlackTitle "-"]
[WhiteFideId "13300474"]
[BlackFideId "44599790"]
[WhiteElo "2700"]
[BlackElo "2546"]

1. e4 {[%clk 00:03:03]} e5 {[%clk 00:03:01]} {[%emt 00:00:03]} 2. Bc4 {[%clk
00:03:04]} {[%emt 00:00:01]} Nf6 {[%clk 00:03:00]} {[%emt 00:00:03]} 3. d3
{[%clk 00:03:05]} {[%emt 00:00:01]} c6 {[%clk 00:02:58]} {[%emt 00:00:03]} 4.
Ne2 {[%clk 00:03:01]} {[%emt 00:00:06]} d5 {[%clk 00:02:57]} {[%emt 00:00:03]}
5. exd5 {[%clk 00:03:02]} {[%emt 00:00:01]} cxd5 {[%clk 00:02:58]} 6. Bb3
{[%clk 00:03:03]} Nc6 {[%clk 00:02:52]} {[%emt 00:00:09]} 7. Bg5 {[%clk
00:02:55]} {[%emt 00:00:10]} Be7 {[%clk 00:02:43]} {[%emt 00:00:10]} 8. Nbc3
{[%clk 00:02:55]} {[%emt 00:00:02]} d4 {[%clk 00:02:33]} {[%emt 00:00:13]} 9.
Bxf6 {[%clk 00:02:52]} {[%emt 00:00:04]} Bxf6 {[%clk 00:02:34]} {[%emt
00:00:01]} 10. Ne4 {[%clk 00:02:52]} {[%emt 00:00:02]} Be7 {[%clk 00:01:59]}
{[%emt 00:00:37]} 11. f4 {[%clk 00:02:38]} {[%emt 00:00:15]} f5 {[%clk
00:01:43]} {[%emt 00:00:18]} 12. Nd2 {[%clk 00:02:25]} {[%emt 00:00:15]} g6
{[%clk 00:01:07]} {[%emt 00:00:38]} 13. O-O {[%clk 00:02:19]} {[%emt 00:00:08]}
Kf8 {[%clk 00:00:59]} {[%emt 00:00:10]} 14. Nf3 {[%clk 00:02:07]} {[%emt
00:00:14]} Bf6 {[%clk 00:00:56]} {[%emt 00:00:05]} 15. Qd2 {[%clk 00:01:34]}
{[%emt 00:00:35]} Kg7 {[%clk 00:00:57]} {[%emt 00:00:01]} 16. fxe5 {[%clk
00:01:25]} {[%emt 00:00:11]} Nxe5 {[%clk 00:00:58]} {[%emt 00:00:01]} 17. Nexd4
{[%clk 00:01:25]} {[%emt 00:00:02]} Nxf3+ {[%clk 00:00:34]} {[%emt 00:00:26]}
18. Nxf3 {[%clk 00:01:25]} Bxb2 {[%clk 00:00:35]} {[%emt 00:00:01]} 19. Rae1
{[%clk 00:01:27]} Bf6 {[%clk 00:00:36]} {[%emt 00:00:01]} 20. h4 {[%clk
00:01:22]} {[%emt 00:00:07]} h6 {[%clk 00:00:14]} {[%emt 00:00:24]} 21. d4
{[%clk 00:01:02]} {[%emt 00:00:22]} Qd6 {[%clk 00:00:08]} {[%emt 00:00:08]} 22.
c3 {[%clk 00:00:31]} {[%emt 00:00:33]} Bd7 {[%clk 00:00:06]} {[%emt 00:00:05]}
23. h5 {[%clk 00:00:29]} {[%emt 00:00:04]} Rae8 {[%clk 00:00:03]} {[%emt
00:00:05]} 24. hxg6 {[%clk 00:00:28]} {[%emt 00:00:03]} Bc6 {[%clk 00:00:04]}
25. Bc2 {[%clk 00:00:21]} {[%emt 00:00:09]} Qg3 {[%clk 00:00:05]} 26. Qf2
{[%clk 00:00:20]} {[%emt 00:00:03]} Qxg6 {[%clk 00:00:04]} {[%emt 00:00:03]} 27.
Ne5 {[%clk 00:00:09]} {[%emt 00:00:13]} Bxe5 {[%clk 00:00:03]} {[%emt
00:00:03]} 28. dxe5 {[%clk 00:00:08]} {[%emt 00:00:03]} Rhf8 {[%clk 00:00:05]}
29. Re3 {[%clk 00:00:09]} {[%emt 00:00:02]} Kh8 {[%clk 00:00:03]} {[%emt
00:00:03]} 30. Rg3 {[%clk 00:00:07]} {[%emt 00:00:03]} Qe6 {[%clk 00:00:05]} 31.
Qf4 {[%clk 00:00:03]} {[%emt 00:00:06]} Rg8 {[%clk 00:00:06]} 32. Rf2 {[%clk
00:00:03]} {[%emt 00:00:03]} Rxg3 {[%clk 00:00:06]} {[%emt 00:00:02]} 33. Qxg3
{[%clk 00:00:04]} Rg8 {[%clk 00:00:08]} 34. Qh4 {[%clk 00:00:06]} Rg5 {[%clk
00:00:09]} 35. Bb3 {[%clk 00:00:06]} {[%emt 00:00:01]} Qg6 {[%clk 00:00:09]}
{[%emt 00:00:02]} 36. Qh3 {[%clk 00:00:07]} Rg3 {[%clk 00:00:10]} {[%emt
00:00:02]} 37. Qxf5 {[%clk 00:00:04]} {[%emt 00:00:05]} Rxg2+ {[%clk 00:00:11]}
{[%emt 00:00:01]} 38. Kf1 {[%clk 00:00:06]} Rxf2+ {[%clk 00:00:05]} {[%emt
00:00:07]} 39. Qxf2 {[%clk 00:00:07]} {[%emt 00:00:01]} Qd3+ {[%clk 00:00:05]}
{[%emt 00:00:02]} 40. Qe2 {[%clk 00:00:05]} {[%emt 00:00:04]} Qxc3 {[%clk
00:00:06]} {[%emt 00:00:01]} 41. Qh5 {[%clk 00:00:03]} {[%emt 00:00:03]} Qf3+
{[%clk 00:00:05]} {[%emt 00:00:04]} 42. Qxf3 {[%clk 00:00:04]} {[%emt
00:00:01]} Bxf3 {[%clk 00:00:06]} 43. Kf2 {[%clk 00:00:06]} Bc6 {[%clk
00:00:07]} 44. Kg3 {[%clk 00:00:07]} {[%emt 00:00:01]} Kg7 {[%clk 00:00:08]}
{[%emt 00:00:01]} 45. Kf4 {[%clk 00:00:08]} Kg6 {[%clk 00:00:05]} {[%emt
00:00:04]} 46. a3 {[%clk 00:00:06]} {[%emt 00:00:04]} b5 {[%clk 00:00:05]}
{[%emt 00:00:03]} 47. Bc2+ {[%clk 00:00:04]} {[%emt 00:00:05]} Kf7 {[%clk
00:00:06]} 48. Bb3+ {[%clk 00:00:04]} {[%emt 00:00:02]} Ke7 {[%clk 00:00:07]}
49. Kf5 {[%clk 00:00:05]} Be8 {[%clk 00:00:05]} {[%emt 00:00:04]} 50. Bc2
{[%clk 00:00:03]} {[%emt 00:00:05]} a5 {[%clk 00:00:06]} 51. Bd3 {[%clk
00:00:05]} Bd7+ {[%clk 00:00:04]} {[%emt 00:00:04]} 52. Kf4 {[%clk 00:00:04]}
{[%emt 00:00:02]} b4 {[%clk 00:00:03]} {[%emt 00:00:03]} 53. axb4 {[%clk
00:00:06]} axb4 {[%clk 00:00:05]} 54. Bc2 {[%clk 00:00:04]} {[%emt 00:00:04]}
Be6 {[%clk 00:00:05]} {[%emt 00:00:02]} 55. Kg3 {[%clk 00:00:03]} {[%emt
00:00:03]} b3 {[%clk 00:00:04]} {[%emt 00:00:02]} 56. Bd3 {[%clk 00:00:04]} b2
{[%clk 00:00:04]} {[%emt 00:00:02]} 57. Kh4 {[%clk 00:00:05]} {[%emt 00:00:01]}
Kf7 {[%clk 00:00:04]} {[%emt 00:00:02]} 58. Bb1 {[%clk 00:00:04]} {[%emt
00:00:02]} Kg7 {[%clk 00:00:04]} {[%emt 00:00:03]} 59. Kg3 {[%clk 00:00:03]}
{[%emt 00:00:03]} Bf7 {[%clk 00:00:05]} 0-1

[Event "Grandmaster Triathlon - Blitz (GM1)"]
[Site "Biel, Switzerland"]
[Date "2026.07.19"]
[Round "5.3"]
[White "Bluebaum, Matthias"]
[Black "Suleymanli, Aydin"]
[Result "1/2-1/2"]
[TimeControl "3 min + 2 sec"]
[WhiteTitle "-"]
[BlackTitle "-"]
[WhiteFideId "24651516"]
[BlackFideId "13413937"]
[WhiteElo "2634"]
[BlackElo "2559"]

1. d4 {[%clk 00:03:03]} Nf6 {[%clk 00:03:03]} {[%emt 00:00:02]} 2. c4 {[%clk
00:03:04]} {[%emt 00:00:01]} e6 {[%clk 00:03:04]} {[%emt 00:00:01]} 3. Nc3
{[%clk 00:03:06]} Bb4 {[%clk 00:03:05]} {[%emt 00:00:01]} 4. e3 {[%clk
00:03:07]} {[%emt 00:00:01]} O-O {[%clk 00:03:04]} {[%emt 00:00:03]} 5. Bd2
{[%clk 00:03:08]} {[%emt 00:00:01]} b6 {[%clk 00:02:58]} {[%emt 00:00:08]} 6.
Nf3 {[%clk 00:03:08]} {[%emt 00:00:02]} Bb7 {[%clk 00:02:59]} {[%emt 00:00:01]}
7. Bd3 {[%clk 00:03:09]} {[%emt 00:00:01]} c5 {[%clk 00:02:58]} {[%emt
00:00:02]} 8. a3 {[%clk 00:03:10]} {[%emt 00:00:02]} Bxc3 {[%clk 00:02:57]}
{[%emt 00:00:03]} 9. Bxc3 {[%clk 00:03:10]} {[%emt 00:00:01]} d6 {[%clk
00:02:53]} {[%emt 00:00:07]} 10. b4 {[%clk 00:03:06]} {[%emt 00:00:06]} Ne4
{[%clk 00:02:50]} {[%emt 00:00:04]} 11. Bb2 {[%clk 00:03:07]} {[%emt 00:00:02]}
f5 {[%clk 00:02:48]} {[%emt 00:00:03]} 12. O-O {[%clk 00:03:04]} {[%emt
00:00:05]} Nd7 {[%clk 00:02:49]} {[%emt 00:00:01]} 13. Nd2 {[%clk 00:02:54]}
{[%emt 00:00:12]} Nxd2 {[%clk 00:02:41]} {[%emt 00:00:09]} 14. Qxd2 {[%clk
00:02:55]} {[%emt 00:00:02]} Qe7 {[%clk 00:02:41]} {[%emt 00:00:03]} 15. Rad1
{[%clk 00:02:52]} {[%emt 00:00:04]} Rad8 {[%clk 00:02:41]} {[%emt 00:00:02]} 16.
Qe2 {[%clk 00:02:45]} {[%emt 00:00:10]} e5 {[%clk 00:02:32]} {[%emt 00:00:11]}
17. dxc5 {[%clk 00:02:38]} {[%emt 00:00:09]} dxc5 {[%clk 00:02:22]} {[%emt
00:00:11]} 18. b5 {[%clk 00:02:11]} {[%emt 00:00:30]} Qe6 {[%clk 00:02:09]}
{[%emt 00:00:15]} 19. Bc2 {[%clk 00:02:01]} {[%emt 00:00:12]} Nf6 {[%clk
00:02:05]} {[%emt 00:00:05]} 20. f3 {[%clk 00:01:58]} {[%emt 00:00:05]} e4
{[%clk 00:01:42]} {[%emt 00:00:26]} 21. f4 {[%clk 00:01:55]} {[%emt 00:00:05]}
Bc8 {[%clk 00:01:43]} 22. h3 {[%clk 00:01:39]} {[%emt 00:00:18]} h6 {[%clk
00:01:37]} {[%emt 00:00:08]} 23. Rxd8 {[%clk 00:01:37]} {[%emt 00:00:04]} Rxd8
{[%clk 00:01:36]} {[%emt 00:00:02]} 24. Rd1 {[%clk 00:01:38]} {[%emt 00:00:01]}
Qe7 {[%clk 00:01:01]} {[%emt 00:00:37]} 25. Rxd8+ {[%clk 00:01:30]} {[%emt
00:00:10]} Qxd8 {[%clk 00:01:02]} {[%emt 00:00:01]} 26. Qd1 {[%clk 00:01:31]}
Qe7 {[%clk 00:00:47]} {[%emt 00:00:16]} 27. Qd2 {[%clk 00:01:13]} {[%emt
00:00:20]} Be6 {[%clk 00:00:45]} {[%emt 00:00:04]} 28. Bb3 {[%clk 00:01:11]}
{[%emt 00:00:04]} Kh7 {[%clk 00:00:41]} {[%emt 00:00:06]} 29. a4 {[%clk
00:01:11]} {[%emt 00:00:03]} Qf7 {[%clk 00:00:37]} {[%emt 00:00:06]} 30. Qc3
{[%clk 00:01:03]} {[%emt 00:00:10]} Kg6 {[%clk 00:00:35]} {[%emt 00:00:03]} 31.
Qc2 {[%clk 00:00:58]} {[%emt 00:00:07]} Qd7 {[%clk 00:00:35]} {[%emt 00:00:02]}
32. Be5 {[%clk 00:00:57]} {[%emt 00:00:03]} Qd3 {[%clk 00:00:27]} {[%emt
00:00:10]} 33. Qxd3 {[%clk 00:00:33]} {[%emt 00:00:27]} exd3 {[%clk 00:00:28]}
34. Bxf6 {[%clk 00:00:34]} {[%emt 00:00:01]} Kxf6 {[%clk 00:00:24]} {[%emt
00:00:06]} 35. Kf2 {[%clk 00:00:35]} Bc8 {[%clk 00:00:18]} {[%emt 00:00:08]} 36.
Bd1 {[%clk 00:00:26]} {[%emt 00:00:11]} Bb7 {[%clk 00:00:18]} {[%emt 00:00:01]}
37. g3 {[%clk 00:00:26]} {[%emt 00:00:02]} Be4 {[%clk 00:00:12]} {[%emt
00:00:08]} 38. Ke1 {[%clk 00:00:21]} {[%emt 00:00:07]} Bg2 {[%clk 00:00:07]}
{[%emt 00:00:06]} 39. h4 {[%clk 00:00:22]} g6 {[%clk 00:00:05]} {[%emt
00:00:04]} 40. Kd2 {[%clk 00:00:24]} {[%emt 00:00:01]} h5 {[%clk 00:00:06]} 41.
Kxd3 {[%clk 00:00:23]} {[%emt 00:00:02]} Be4+ {[%clk 00:00:07]} 42. Kc3 {[%clk
00:00:24]} {[%emt 00:00:01]} Kf7 {[%clk 00:00:07]} {[%emt 00:00:01]} 43. Bc2
{[%clk 00:00:15]} {[%emt 00:00:12]} Bxc2 {[%clk 00:00:07]} {[%emt 00:00:02]} 44.
Kxc2 {[%clk 00:00:16]} {[%emt 00:00:01]} Kf6 {[%clk 00:00:08]} {[%emt
00:00:01]} 45. Kd3 {[%clk 00:00:16]} {[%emt 00:00:01]} Ke6 {[%clk 00:00:09]} 46.
e4 {[%clk 00:00:15]} {[%emt 00:00:04]} Kf6 {[%clk 00:00:11]} 47. Ke3 {[%clk
00:00:16]} Ke6 {[%clk 00:00:12]} {[%emt 00:00:01]} 48. e5 {[%clk 00:00:15]}
{[%emt 00:00:02]} Ke7 {[%clk 00:00:11]} {[%emt 00:00:03]} 49. Kd3 {[%clk
00:00:16]} {[%emt 00:00:01]} Ke6 {[%clk 00:00:12]} 50. Kc3 {[%clk 00:00:18]}
Ke7 {[%clk 00:00:13]} 51. Kb3 {[%clk 00:00:19]} Ke6 {[%clk 00:00:14]} 52. a5
{[%clk 00:00:20]} {[%emt 00:00:01]} Ke7 {[%clk 00:00:13]} {[%emt 00:00:02]} 53.
a6 {[%clk 00:00:21]} {[%emt 00:00:02]} Ke6 {[%clk 00:00:14]} 54. Kc3 {[%clk
00:00:22]} {[%emt 00:00:01]} Ke7 {[%clk 00:00:15]} 55. Kb3 {[%clk 00:00:24]}
Ke6 {[%clk 00:00:17]} {[%emt 00:00:01]} 56. Kc3 {[%clk 00:00:22]} 1/2-1/2

[Event "Grandmaster Triathlon - Blitz (GM1)"]
[Site "Biel, Switzerland"]
[Date "2026.07.19"]
[Round "6.1"]
[White "Suleymanli, Aydin"]
[Black "Martinez Alcantara, Jose Eduardo"]
[Result "1-0"]
[TimeControl "3 min + 2 sec"]
[WhiteTitle "-"]
[BlackTitle "-"]
[WhiteFideId "13413937"]
[BlackFideId "3805662"]
[WhiteElo "2559"]
[BlackElo "2641"]

1. d4 {[%clk 00:03:03]} d5 {[%clk 00:03:04]} {[%emt 00:00:01]} 2. Nf3 {[%clk
00:03:04]} {[%emt 00:00:01]} Nf6 {[%clk 00:03:04]} {[%emt 00:00:01]} 3. Bf4
{[%clk 00:03:02]} {[%emt 00:00:03]} c5 {[%clk 00:03:03]} {[%emt 00:00:05]} 4.
e3 {[%clk 00:03:03]} e6 {[%clk 00:02:59]} {[%emt 00:00:06]} 5. Nbd2 {[%clk
00:03:04]} {[%emt 00:00:01]} Qb6 {[%clk 00:02:55]} {[%emt 00:00:06]} 6. Rb1
{[%clk 00:03:04]} cxd4 {[%clk 00:02:48]} {[%emt 00:00:09]} 7. exd4 {[%clk
00:03:04]} {[%emt 00:00:02]} Bd7 {[%clk 00:02:49]} 8. c4 {[%clk 00:02:50]}
{[%emt 00:00:16]} dxc4 {[%clk 00:01:26]} {[%emt 00:01:25]} 9. Nxc4 {[%clk
00:02:44]} {[%emt 00:00:08]} Qd8 {[%clk 00:01:21]} {[%emt 00:00:07]} 10. a3
{[%clk 00:02:44]} {[%emt 00:00:02]} Bc6 {[%clk 00:01:19]} {[%emt 00:00:04]} 11.
Nce5 {[%clk 00:02:43]} {[%emt 00:00:03]} Be7 {[%clk 00:01:19]} {[%emt
00:00:02]} 12. Ng5 {[%clk 00:02:37]} {[%emt 00:00:07]} O-O {[%clk 00:01:18]}
{[%emt 00:00:04]} 13. Bd3 {[%clk 00:02:38]} {[%emt 00:00:01]} Be8 {[%clk
00:01:11]} {[%emt 00:00:09]} 14. h4 {[%clk 00:01:43]} {[%emt 00:00:57]} Nc6
{[%clk 00:01:08]} {[%emt 00:00:05]} 15. Nef3 {[%clk 00:01:33]} {[%emt
00:00:11]} h6 {[%clk 00:01:06]} {[%emt 00:00:04]} 16. Bc2 {[%clk 00:01:32]}
{[%emt 00:00:03]} Qa5+ {[%clk 00:00:51]} {[%emt 00:00:17]} 17. Bd2 {[%clk
00:00:46]} {[%emt 00:00:48]} Qd5 {[%clk 00:00:51]} {[%emt 00:00:01]} 18. Be3
{[%clk 00:00:16]} {[%emt 00:00:33]} Rd8 {[%clk 00:00:35]} {[%emt 00:00:18]} 19.
Qd3 {[%clk 00:00:15]} {[%emt 00:00:02]} Qf5 {[%clk 00:00:15]} {[%emt 00:00:21]}
20. Qxf5 {[%clk 00:00:08]} {[%emt 00:00:09]} exf5 {[%clk 00:00:17]} {[%emt
00:00:01]} 21. Nh3 {[%clk 00:00:08]} {[%emt 00:00:01]} Bd7 {[%clk 00:00:08]}
{[%emt 00:00:10]} 22. Nf4 {[%clk 00:00:09]} Bd6 {[%clk 00:00:09]} {[%emt
00:00:01]} 23. O-O {[%clk 00:00:05]} {[%emt 00:00:06]} Rfe8 {[%clk 00:00:11]}
24. Rfe1 {[%clk 00:00:06]} g6 {[%clk 00:00:06]} {[%emt 00:00:08]} 25. Nd3
{[%clk 00:00:07]} {[%emt 00:00:02]} Ng4 {[%clk 00:00:06]} {[%emt 00:00:01]} 26.
Bd2 {[%clk 00:00:07]} {[%emt 00:00:02]} Be6 {[%clk 00:00:06]} {[%emt 00:00:02]}
27. Nf4 {[%clk 00:00:07]} {[%emt 00:00:02]} Bxf4 {[%clk 00:00:05]} {[%emt
00:00:03]} 28. Bxf4 {[%clk 00:00:08]} Bd5 {[%clk 00:00:07]} 29. Rxe8+ {[%clk
00:00:06]} {[%emt 00:00:03]} Rxe8 {[%clk 00:00:08]} 30. Rd1 {[%clk 00:00:07]}
Kg7 {[%clk 00:00:06]} {[%emt 00:00:05]} 31. Bd3 {[%clk 00:00:08]} a6 {[%clk
00:00:07]} {[%emt 00:00:01]} 32. Ne5 {[%clk 00:00:04]} {[%emt 00:00:07]} Ngxe5
{[%clk 00:00:04]} {[%emt 00:00:05]} 33. dxe5 {[%clk 00:00:05]} {[%emt
00:00:01]} Be6 {[%clk 00:00:04]} {[%emt 00:00:02]} 34. Be2 {[%clk 00:00:06]}
{[%emt 00:00:01]} Rc8 {[%clk 00:00:05]} {[%emt 00:00:02]} 35. Bf3 {[%clk
00:00:07]} Na5 {[%clk 00:00:04]} {[%emt 00:00:03]} 36. b4 {[%clk 00:00:08]} Nc6
{[%clk 00:00:04]} {[%emt 00:00:02]} 37. Rd6 {[%clk 00:00:09]} Rc7 {[%clk
00:00:04]} {[%emt 00:00:03]} 38. Kh2 {[%clk 00:00:09]} {[%emt 00:00:01]} Rc8
{[%clk 00:00:04]} {[%emt 00:00:03]} 39. Be3 {[%clk 00:00:08]} {[%emt 00:00:03]}
Rc7 {[%clk 00:00:04]} {[%emt 00:00:02]} 40. Bb6 {[%clk 00:00:09]} Rc8 {[%clk
00:00:05]} {[%emt 00:00:01]} 41. Bc5 {[%clk 00:00:10]} {[%emt 00:00:01]} g5
{[%clk 00:00:06]} 42. hxg5 {[%clk 00:00:08]} {[%emt 00:00:04]} hxg5 {[%clk
00:00:08]} 43. g3 {[%clk 00:00:09]} {[%emt 00:00:01]} Rh8+ {[%clk 00:00:06]}
{[%emt 00:00:04]} 44. Kg1 {[%clk 00:00:10]} Rc8 {[%clk 00:00:05]} {[%emt
00:00:03]} 45. Rd1 {[%clk 00:00:10]} {[%emt 00:00:02]} b5 {[%clk 00:00:05]}
{[%emt 00:00:02]} 46. Bd6 {[%clk 00:00:10]} Nb8 {[%clk 00:00:03]} {[%emt
00:00:05]} 47. Bc5 {[%clk 00:00:10]} {[%emt 00:00:02]} Nd7 {[%clk 00:00:04]} 48.
Bb7 {[%clk 00:00:11]} {[%emt 00:00:01]} Rh8 {[%clk 00:00:04]} {[%emt 00:00:03]}
49. Bd4 {[%clk 00:00:11]} {[%emt 00:00:02]} Rb8 {[%clk 00:00:04]} {[%emt
00:00:02]} 50. Bxa6 {[%clk 00:00:12]} {[%emt 00:00:01]} Kg6 {[%clk 00:00:05]}
51. Rc1 {[%clk 00:00:13]} f4 {[%clk 00:00:04]} {[%emt 00:00:03]} 52. gxf4
{[%clk 00:00:08]} {[%emt 00:00:07]} gxf4 {[%emt 00:00:01]} 53. Rc8 {[%clk
00:00:06]} {[%emt 00:00:03]} Kf5 {[%clk 00:00:03]} {[%emt 00:00:04]} 54. Rxb8
{[%clk 00:00:07]} {[%emt 00:00:01]} Nxb8 {[%clk 00:00:04]} 55. Bxb5 {[%clk
00:00:08]} Ke4 {[%clk 00:00:06]} 56. Bc3 {[%clk 00:00:07]} {[%emt 00:00:03]}
Bd5 {[%clk 00:00:07]} {[%emt 00:00:01]} 57. Kf1 {[%clk 00:00:07]} {[%emt
00:00:01]} Nc6 {[%clk 00:00:08]} {[%emt 00:00:01]} 58. Ke2 {[%clk 00:00:07]}
{[%emt 00:00:02]} Nxe5 {[%clk 00:00:07]} {[%emt 00:00:04]} 59. Bxe5 {[%clk
00:00:07]} {[%emt 00:00:01]} Kxe5 {[%clk 00:00:08]} 60. Kd3 {[%clk 00:00:08]}
{[%emt 00:00:02]} Kf5 {[%clk 00:00:08]} {[%emt 00:00:02]} 61. Bd7+ {[%clk
00:00:05]} {[%emt 00:00:04]} Ke5 {[%emt 00:00:04]} 62. a4 {[%clk 00:00:06]} Kd6
{[%clk 00:00:08]} {[%emt 00:00:01]} 63. Bb5 {[%clk 00:00:07]} Ke5 {[%clk
00:00:09]} {[%emt 00:00:02]} 64. a5 {[%clk 00:00:07]} {[%emt 00:00:01]} Bg2
{[%clk 00:00:11]} 65. Bc4 {[%clk 00:00:07]} {[%emt 00:00:02]} f6 {[%clk
00:00:11]} {[%emt 00:00:02]} 66. b5 {[%clk 00:00:08]} {[%emt 00:00:01]} Kd6
{[%clk 00:00:12]} 67. Kd4 {[%clk 00:00:09]} f5 {[%clk 00:00:12]} {[%emt
00:00:02]} 68. Bd3 {[%clk 00:00:10]} {[%emt 00:00:01]} 1-0